Workbook

Sheet Declaraţie pierdere şi profit
B1: Profit şi pierderi Declaraţie
D3: PERIOADĂ ANTERIOARĂ | E3: BUGET | F3: PERIOADĂ CURENTĂ | H3: PERIOADĂ CURENTĂ CA % DIN VÂNZĂRI | I3: MODIFICARE % FAŢĂ DE PERIOADA ANTERIOARĂ | J3: MODIFICARE % FAŢĂ DE BUGET
B4: Venit din vânzări
B5: Produs/Serviciu 1 | D5: 40 | E5: 50 | F5: 45 | H5: =IFERROR(VenitVânzări[[#This Row],[Perioada curentă]]/SUBTOTAL(109,VenitVânzări[Perioada curentă]),0) -> 1 | I5: =IFERROR(VenitVânzări[[#This Row],[Perioada curentă]]/VenitVânzări[[#This Row],[Perioada anterioară]]-1,0) -> 0.125 | J5: =IFERROR(VenitVânzări[[#This Row],[Perioada curentă]]/VenitVânzări[[#This Row],[Buget]]-1,0) -> -0.1
B6: Produs/Serviciu 2 | H6: =IFERROR(VenitVânzări[[#This Row],[Perioada curentă]]/SUBTOTAL(109,VenitVânzări[Perioada curentă]),0) -> 0 | I6: =IFERROR(VenitVânzări[[#This Row],[Perioada curentă]]/VenitVânzări[[#This Row],[Perioada anterioară]]-1,0) -> 0 | J6: =IFERROR(VenitVânzări[[#This Row],[Perioada curentă]]/VenitVânzări[[#This Row],[Buget]]-1,0) -> 0
B7: Produs/Serviciu 3 | H7: =IFERROR(VenitVânzări[[#This Row],[Perioada curentă]]/SUBTOTAL(109,VenitVânzări[Perioada curentă]),0) -> 0 | I7: =IFERROR(VenitVânzări[[#This Row],[Perioada curentă]]/VenitVânzări[[#This Row],[Perioada anterioară]]-1,0) -> 0 | J7: =IFERROR(VenitVânzări[[#This Row],[Perioada curentă]]/VenitVânzări[[#This Row],[Buget]]-1,0) -> 0
B8: Produs/Serviciu 4 | H8: =IFERROR(VenitVânzări[[#This Row],[Perioada curentă]]/SUBTOTAL(109,VenitVânzări[Perioada curentă]),0) -> 0 | I8: =IFERROR(VenitVânzări[[#This Row],[Perioada curentă]]/VenitVânzări[[#This Row],[Perioada anterioară]]-1,0) -> 0 | J8: =IFERROR(VenitVânzări[[#This Row],[Perioada curentă]]/VenitVânzări[[#This Row],[Buget]]-1,0) -> 0
B9: Total | D9: =SUBTOTAL(109,VenitVânzări[Perioada anterioară]) -> 40 | E9: =SUBTOTAL(109,VenitVânzări[Buget]) -> 50 | F9: =SUBTOTAL(109,VenitVânzări[Perioada curentă]) -> 45 | H9: =IFERROR(VenitVânzări[[#Totals],[Perioada curentă]]/VenitVânzări[[#Totals],[Perioada curentă]],0) -> 1 | I9: =IFERROR(VenitVânzări[[#Totals],[Perioada curentă]]/VenitVânzări[[#Totals],[Perioada anterioară]]-1,0) -> 0.125 | J9: =IFERROR(VenitVânzări[[#Totals],[Perioada curentă]]/VenitVânzări[[#Totals],[Buget]]-1,0) -> -0.1
B11: Costul vânzărilor
B12: Produs/Serviciu 1 | E12: 2 | F12: 3 | H12: =IFERROR(CostVânzări[[#This Row],[Perioada curentă]]/SUBTOTAL(109,VenitVânzări[Perioada curentă]),0) -> 0.06666666667 | I12: =IFERROR(CostVânzări[[#This Row],[Perioada curentă]]/CostVânzări[[#This Row],[Perioada anterioară]]-1,0) -> 0 | J12: =IFERROR(CostVânzări[[#This Row],[Perioada curentă]]/CostVânzări[[#This Row],[Buget]]-1,0) -> 0.5
B13: Produs/Serviciu 2 | E13: 5 | F13: 3 | H13: =IFERROR(CostVânzări[[#This Row],[Perioada curentă]]/SUBTOTAL(109,VenitVânzări[Perioada curentă]),0) -> 0.06666666667 | I13: =IFERROR(CostVânzări[[#This Row],[Perioada curentă]]/CostVânzări[[#This Row],[Perioada anterioară]]-1,0) -> 0 | J13: =IFERROR(CostVânzări[[#This Row],[Perioada curentă]]/CostVânzări[[#This Row],[Buget]]-1,0) -> -0.4
B14: Produs/Serviciu 3 | F14: 1 | H14: =IFERROR(CostVânzări[[#This Row],[Perioada curentă]]/SUBTOTAL(109,VenitVânzări[Perioada curentă]),0) -> 0.02222222222 | I14: =IFERROR(CostVânzări[[#This Row],[Perioada curentă]]/CostVânzări[[#This Row],[Perioada anterioară]]-1,0) -> 0 | J14: =IFERROR(CostVânzări[[#This Row],[Perioada curentă]]/CostVânzări[[#This Row],[Buget]]-1,0) -> 0
B15: Produs/Serviciu 4 | H15: =IFERROR(CostVânzări[[#This Row],[Perioada curentă]]/SUBTOTAL(109,VenitVânzări[Perioada curentă]),0) -> 0 | I15: =IFERROR(CostVânzări[[#This Row],[Perioada curentă]]/CostVânzări[[#This Row],[Perioada anterioară]]-1,0) -> 0 | J15: =IFERROR(CostVânzări[[#This Row],[Perioada curentă]]/CostVânzări[[#This Row],[Buget]]-1,0) -> 0
B16: Total | D16: =SUBTOTAL(109,CostVânzări[Perioada anterioară]) -> 0 | E16: =SUBTOTAL(109,CostVânzări[Buget]) -> 7 | F16: =SUBTOTAL(109,CostVânzări[Perioada curentă]) -> 7 | H16: =IFERROR(CostVânzări[[#Totals],[Perioada curentă]]/SUBTOTAL(109,VenitVânzări[Perioada curentă]),0) -> 0.1555555556 | I16: =IFERROR(CostVânzări[[#Totals],[Perioada curentă]]/CostVânzări[[#Totals],[Perioada anterioară]]-1,0) -> 0 | J16: =IFERROR(CostVânzări[[#Totals],[Perioada curentă]]/CostVânzări[[#Totals],[Buget]]-1,0) -> 0
B18: Profit brut | D18: =SUM(VenitVânzări[Perioada anterioară])-SUM(CostVânzări[Perioada anterioară]) -> 40 | E18: =SUM(VenitVânzări[Buget])-SUM(CostVânzări[Buget]) -> 43 | F18: =SUM(VenitVânzări[Perioada curentă])-SUM(CostVânzări[Perioada curentă]) -> 38 | H18: =IFERROR(F18/SUBTOTAL(109,VenitVânzări[Perioada curentă]),0) -> 0.8444444444 | I18: =IFERROR(F18/D18-1,0) -> -0.05 | J18: =IFERROR(F18/E18-1,0) -> -0.1162790698
B20: Cheltuială operaţională: Vânzări şi Marketing
B21: Publicitate | E21: 22 | F21: 19 | H21: =IFERROR(VânzărişiMarketing[[#This Row],[Perioada curentă]]/SUBTOTAL(109,VenitVânzări[Perioada curentă]),0) -> 0.4222222222 | I21: =IFERROR(VânzărişiMarketing[[#This Row],[Perioada curentă]]/VânzărişiMarketing[[#This Row],[Perioada anterioară]]-1,0) -> 0 | J21: =IFERROR(VânzărişiMarketing[[#This Row],[Perioada curentă]]/VânzărişiMarketing[[#This Row],[Buget]]-1,0) -> -0.1363636364
B22: Marketing direct | H22: =IFERROR(VânzărişiMarketing[[#This Row],[Perioada curentă]]/SUBTOTAL(109,VenitVânzări[Perioada curentă]),0) -> 0 | I22: =IFERROR(VânzărişiMarketing[[#This Row],[Perioada curentă]]/VânzărişiMarketing[[#This Row],[Perioada anterioară]]-1,0) -> 0 | J22: =IFERROR(VânzărişiMarketing[[#This Row],[Perioada curentă]]/VânzărişiMarketing[[#This Row],[Buget]]-1,0) -> 0
B23: Alte cheltuieli (specificaţi) | H23: =IFERROR(VânzărişiMarketing[[#This Row],[Perioada curentă]]/SUBTOTAL(109,VenitVânzări[Perioada curentă]),0) -> 0 | I23: =IFERROR(VânzărişiMarketing[[#This Row],[Perioada curentă]]/VânzărişiMarketing[[#This Row],[Perioada anterioară]]-1,0) -> 0 | J23: =IFERROR(VânzărişiMarketing[[#This Row],[Perioada curentă]]/VânzărişiMarketing[[#This Row],[Buget]]-1,0) -> 0
B24: Total | D24: =SUBTOTAL(109,VânzărişiMarketing[Perioada anterioară]) -> 0 | E24: =SUBTOTAL(109,VânzărişiMarketing[Buget]) -> 22 | F24: =SUBTOTAL(109,VânzărişiMarketing[Perioada curentă]) -> 19 | H24: =IFERROR(VânzărişiMarketing[[#Totals],[Perioada curentă]]/SUBTOTAL(109,VenitVânzări[Perioada curentă]),0) -> 0.4222222222 | I24: =IFERROR(VânzărişiMarketing[[#Totals],[Perioada curentă]]/VânzărişiMarketing[[#Totals],[Perioada anterioară]]-1,0) -> 0 | J24: =IFERROR(VânzărişiMarketing[[#Totals],[Perioada curentă]]/VânzărişiMarketing[[#Totals],[Buget]]-1,0) -> -0.1363636364
B26: Cheltuială operaţională: General şi Administrativ
B27: Salarii | E27: 56 | F27: 51 | H27: =IFERROR(GeneralşiAdministrativ[[#This Row],[Perioada curentă]]/SUBTOTAL(109,VenitVânzări[Perioada curentă]),0) -> 1.133333333 | I27: =IFERROR(GeneralşiAdministrativ[[#This Row],[Perioada curentă]]/GeneralşiAdministrativ[[#This Row],[Perioada anterioară]]-1,0) -> 0 | J27: =IFERROR(GeneralşiAdministrativ[[#This Row],[Perioada curentă]]/GeneralşiAdministrativ[[#This Row],[Buget]]-1,0) -> -0.08928571429
B28: Servicii externe | H28: =IFERROR(GeneralşiAdministrativ[[#This Row],[Perioada curentă]]/SUBTOTAL(109,VenitVânzări[Perioada curentă]),0) -> 0 | I28: =IFERROR(GeneralşiAdministrativ[[#This Row],[Perioada curentă]]/GeneralşiAdministrativ[[#This Row],[Perioada anterioară]]-1,0) -> 0 | J28: =IFERROR(GeneralşiAdministrativ[[#This Row],[Perioada curentă]]/GeneralşiAdministrativ[[#This Row],[Buget]]-1,0) -> 0
B29: Materiale | H29: =IFERROR(GeneralşiAdministrativ[[#This Row],[Perioada curentă]]/SUBTOTAL(109,VenitVânzări[Perioada curentă]),0) -> 0 | I29: =IFERROR(GeneralşiAdministrativ[[#This Row],[Perioada curentă]]/GeneralşiAdministrativ[[#This Row],[Perioada anterioară]]-1,0) -> 0 | J29: =IFERROR(GeneralşiAdministrativ[[#This Row],[Perioada curentă]]/GeneralşiAdministrativ[[#This Row],[Buget]]-1,0) -> 0
B30: Ieşiri în oraş şi divertisment | H30: =IFERROR(GeneralşiAdministrativ[[#This Row],[Perioada curentă]]/SUBTOTAL(109,VenitVânzări[Perioada curentă]),0) -> 0 | I30: =IFERROR(GeneralşiAdministrativ[[#This Row],[Perioada curentă]]/GeneralşiAdministrativ[[#This Row],[Perioada anterioară]]-1,0) -> 0 | J30: =IFERROR(GeneralşiAdministrativ[[#This Row],[Perioada curentă]]/GeneralşiAdministrativ[[#This Row],[Buget]]-1,0) -> 0
B31: Chirie | H31: =IFERROR(GeneralşiAdministrativ[[#This Row],[Perioada curentă]]/SUBTOTAL(109,VenitVânzări[Perioada curentă]),0) -> 0 | I31: =IFERROR(GeneralşiAdministrativ[[#This Row],[Perioada curentă]]/GeneralşiAdministrativ[[#This Row],[Perioada anterioară]]-1,0) -> 0 | J31: =IFERROR(GeneralşiAdministrativ[[#This Row],[Perioada curentă]]/GeneralşiAdministrativ[[#This Row],[Buget]]-1,0) -> 0
B32: Telefon | H32: =IFERROR(GeneralşiAdministrativ[[#This Row],[Perioada curentă]]/SUBTOTAL(109,VenitVânzări[Perioada curentă]),0) -> 0 | I32: =IFERROR(GeneralşiAdministrativ[[#This Row],[Perioada curentă]]/GeneralşiAdministrativ[[#This Row],[Perioada anterioară]]-1,0) -> 0 | J32: =IFERROR(GeneralşiAdministrativ[[#This Row],[Perioada curentă]]/GeneralşiAdministrativ[[#This Row],[Buget]]-1,0) -> 0
B33: Utilităţi | H33: =IFERROR(GeneralşiAdministrativ[[#This Row],[Perioada curentă]]/SUBTOTAL(109,VenitVânzări[Perioada curentă]),0) -> 0 | I33: =IFERROR(GeneralşiAdministrativ[[#This Row],[Perioada curentă]]/GeneralşiAdministrativ[[#This Row],[Perioada anterioară]]-1,0) -> 0 | J33: =IFERROR(GeneralşiAdministrativ[[#This Row],[Perioada curentă]]/GeneralşiAdministrativ[[#This Row],[Buget]]-1,0) -> 0
B34: Amortizare | H34: =IFERROR(GeneralşiAdministrativ[[#This Row],[Perioada curentă]]/SUBTOTAL(109,VenitVânzări[Perioada curentă]),0) -> 0 | I34: =IFERROR(GeneralşiAdministrativ[[#This Row],[Perioada curentă]]/GeneralşiAdministrativ[[#This Row],[Perioada anterioară]]-1,0) -> 0 | J34: =IFERROR(GeneralşiAdministrativ[[#This Row],[Perioada curentă]]/GeneralşiAdministrativ[[#This Row],[Buget]]-1,0) -> 0
B35: Asigurare | H35: =IFERROR(GeneralşiAdministrativ[[#This Row],[Perioada curentă]]/SUBTOTAL(109,VenitVânzări[Perioada curentă]),0) -> 0 | I35: =IFERROR(GeneralşiAdministrativ[[#This Row],[Perioada curentă]]/GeneralşiAdministrativ[[#This Row],[Perioada anterioară]]-1,0) -> 0 | J35: =IFERROR(GeneralşiAdministrativ[[#This Row],[Perioada curentă]]/GeneralşiAdministrativ[[#This Row],[Buget]]-1,0) -> 0
B36: Reparaţii şi întreţinere | H36: =IFERROR(GeneralşiAdministrativ[[#This Row],[Perioada curentă]]/SUBTOTAL(109,VenitVânzări[Perioada curentă]),0) -> 0 | I36: =IFERROR(GeneralşiAdministrativ[[#This Row],[Perioada curentă]]/GeneralşiAdministrativ[[#This Row],[Perioada anterioară]]-1,0) -> 0 | J36: =IFERROR(GeneralşiAdministrativ[[#This Row],[Perioada curentă]]/GeneralşiAdministrativ[[#This Row],[Buget]]-1,0) -> 0
B37: Alte cheltuieli (specificaţi) | H37: =IFERROR(GeneralşiAdministrativ[[#This Row],[Perioada curentă]]/SUBTOTAL(109,VenitVânzări[Perioada curentă]),0) -> 0 | I37: =IFERROR(GeneralşiAdministrativ[[#This Row],[Perioada curentă]]/GeneralşiAdministrativ[[#This Row],[Perioada anterioară]]-1,0) -> 0 | J37: =IFERROR(GeneralşiAdministrativ[[#This Row],[Perioada curentă]]/GeneralşiAdministrativ[[#This Row],[Buget]]-1,0) -> 0
B38: Total | D38: =SUBTOTAL(109,GeneralşiAdministrativ[Perioada anterioară]) -> 0 | E38: =SUBTOTAL(109,GeneralşiAdministrativ[Buget]) -> 56 | F38: =SUBTOTAL(109,GeneralşiAdministrativ[Perioada curentă]) -> 51 | H38: =IFERROR(GeneralşiAdministrativ[[#Totals],[Perioada curentă]]/SUBTOTAL(109,VenitVânzări[Perioada curentă]),0) -> 1.133333333 | I38: =IFERROR(GeneralşiAdministrativ[[#Totals],[Perioada curentă]]/GeneralşiAdministrativ[[#Totals],[Perioada anterioară]]-1,0) -> 0 | J38: =IFERROR(GeneralşiAdministrativ[[#Totals],[Perioada curentă]]/GeneralşiAdministrativ[[#Totals],[Buget]]-1,0) -> -0.08928571429
B40: Cheltuială operaţională: Altele
B41: Altă cheltuială operaţională 1 | E41: 10 | H41: =IFERROR(CategoriaAlteCheltuieliOperaţionale[[#This Row],[Perioada curentă]]/SUBTOTAL(109,VenitVânzări[Perioada curentă]),0) -> 0 | I41: =IFERROR(CategoriaAlteCheltuieliOperaţionale[[#This Row],[Perioada curentă]]/CategoriaAlteCheltuieliOperaţionale[[#This Row],[Perioada anterioară]]-1,0) -> 0 | J41: =IFERROR(CategoriaAlteCheltuieliOperaţionale[[#This Row],[Perioada curentă]]/CategoriaAlteCheltuieliOperaţionale[[#This Row],[Buget]]-1,0) -> -1
B42: Altă cheltuială operaţională 2 | H42: =IFERROR(CategoriaAlteCheltuieliOperaţionale[[#This Row],[Perioada curentă]]/SUBTOTAL(109,VenitVânzări[Perioada curentă]),0) -> 0 | I42: =IFERROR(CategoriaAlteCheltuieliOperaţionale[[#This Row],[Perioada curentă]]/CategoriaAlteCheltuieliOperaţionale[[#This Row],[Perioada anterioară]]-1,0) -> 0 | J42: =IFERROR(CategoriaAlteCheltuieliOperaţionale[[#This Row],[Perioada curentă]]/CategoriaAlteCheltuieliOperaţionale[[#This Row],[Buget]]-1,0) -> 0
B43: Total | D43: =SUBTOTAL(109,CategoriaAlteCheltuieliOperaţionale[Perioada anterioară]) -> 0 | E43: =SUBTOTAL(109,CategoriaAlteCheltuieliOperaţionale[Buget]) -> 10 | F43: =SUBTOTAL(109,CategoriaAlteCheltuieliOperaţionale[Perioada curentă]) -> 0 | H43: =IFERROR(CategoriaAlteCheltuieliOperaţionale[[#Totals],[Perioada curentă]]/SUBTOTAL(109,VenitVânzări[Perioada curentă]),0) -> 0 | I43: =IFERROR(CategoriaAlteCheltuieliOperaţionale[[#Totals],[Perioada curentă]]/CategoriaAlteCheltuieliOperaţionale[[#Totals],[Perioada anterioară]]-1,0) -> 0 | J43: =IFERROR(CategoriaAlteCheltuieliOperaţionale[[#Totals],[Perioada curentă]]/CategoriaAlteCheltuieliOperaţionale[[#Totals],[Buget]]-1,0) -> -1
B45: Cheltuieli totale operaţionale | D45: =SUM(VânzărişiMarketing[Perioada anterioară],GeneralşiAdministrativ[Perioada anterioară],CategoriaAlteCheltuieliOperaţionale[Perioada anterioară]) -> 0 | E45: =SUM(VânzărişiMarketing[Buget],GeneralşiAdministrativ[Buget],CategoriaAlteCheltuieliOperaţionale[Buget]) -> 88 | F45: =SUM(VânzărişiMarketing[Perioada curentă],GeneralşiAdministrativ[Perioada curentă],CategoriaAlteCheltuieliOperaţionale[Perioada curentă]) -> 70 | H45: =IFERROR(F45/SUBTOTAL(109,VenitVânzări[Perioada curentă]),0) -> 1.555555556 | I45: =IFERROR(F45/D45-1,0) -> 0 | J45: =IFERROR(F45/E45-1,0) -> -0.2045454545
B47: Venit din operaţiuni | D47: =D18-D45 -> 40 | E47: =E18-E45 -> -45 | F47: =F18-F45 -> -32 | H47: =IFERROR(F47/SUBTOTAL(109,VenitVânzări[Perioada curentă]),0) -> -0.7111111111 | I47: =IFERROR(IF(D47=F47,0,IF(F47>D47,ABS((F47/D47)-1),IF(AND(F47<D47,D47<0),-((F47/D47)-1),(F47/D47)-1))),0) -> -1.8 | J47: =IFERROR(IF(E47=F47,0,IF(F47>E47,ABS((F47/E47)-1),IF(AND(F47<E47,E47<0),-((F47/E47)-1),(F47/E47)-1))),0) -> 0.2888888889
B49: Alte venituri | H49: =IFERROR(F49/SUBTOTAL(109,VenitVânzări[Perioada curentă]),0) -> 0 | I49: =IFERROR(F49/D49-1,0) -> 0 | J49: =IFERROR(F49/E49-1,0) -> 0
B51: Impozite
B52: Impozit pe venit | E52: 32 | F52: 30 | H52: =IFERROR(Taxe[[#This Row],[Perioada curentă]]/SUBTOTAL(109,VenitVânzări[Perioada curentă]),0) -> 0.6666666667 | I52: =IFERROR(Taxe[[#This Row],[Perioada curentă]]/Taxe[[#This Row],[Perioada anterioară]]-1,0) -> 0 | J52: =IFERROR(Taxe[[#This Row],[Perioada curentă]]/Taxe[[#This Row],[Buget]]-1,0) -> -0.0625
B53: Impozit pe salarii | H53: =IFERROR(Taxe[[#This Row],[Perioada curentă]]/SUBTOTAL(109,VenitVânzări[Perioada curentă]),0) -> 0 | I53: =IFERROR(Taxe[[#This Row],[Perioada curentă]]/Taxe[[#This Row],[Perioada anterioară]]-1,0) -> 0 | J53: =IFERROR(Taxe[[#This Row],[Perioada curentă]]/Taxe[[#This Row],[Buget]]-1,0) -> 0
B54: Impozit proprietăţi imobiliare | H54: =IFERROR(Taxe[[#This Row],[Perioada curentă]]/SUBTOTAL(109,VenitVânzări[Perioada curentă]),0) -> 0 | I54: =IFERROR(Taxe[[#This Row],[Perioada curentă]]/Taxe[[#This Row],[Perioada anterioară]]-1,0) -> 0 | J54: =IFERROR(Taxe[[#This Row],[Perioada curentă]]/Taxe[[#This Row],[Buget]]-1,0) -> 0
B55: Alte impozite (specificaţi) | H55: =IFERROR(Taxe[[#This Row],[Perioada curentă]]/SUBTOTAL(109,VenitVânzări[Perioada curentă]),0) -> 0 | I55: =IFERROR(Taxe[[#This Row],[Perioada curentă]]/Taxe[[#This Row],[Perioada anterioară]]-1,0) -> 0 | J55: =IFERROR(Taxe[[#This Row],[Perioada curentă]]/Taxe[[#This Row],[Buget]]-1,0) -> 0
B56: Total | D56: =SUBTOTAL(109,Taxe[Perioada anterioară]) -> 0 | E56: =SUBTOTAL(109,Taxe[Buget]) -> 32 | F56: =SUBTOTAL(109,Taxe[Perioada curentă]) -> 30 | H56: =IFERROR(Taxe[[#Totals],[Perioada curentă]]/SUBTOTAL(109,VenitVânzări[Perioada curentă]),0) -> 0.6666666667 | I56: =IFERROR(Taxe[[#Totals],[Perioada curentă]]/Taxe[[#Totals],[Perioada anterioară]]-1,0) -> 0 | J56: =IFERROR(Taxe[[#Totals],[Perioada curentă]]/Taxe[[#Totals],[Buget]]-1,0) -> -0.0625
B58: Profit net | D58: =D47+D49-Taxe[[#Totals],[Perioada anterioară]] -> 40 | E58: =E47+E49-Taxe[[#Totals],[Perioada anterioară]] -> -45 | F58: =F47+F49-Taxe[[#Totals],[Perioada anterioară]] -> -32 | H58: =IFERROR(F58/SUBTOTAL(109,VenitVânzări[Perioada curentă]),0) -> -0.7111111111 | I58: =IFERROR(IF(D58=F58,0,IF(F58>D58,ABS((F58/D58)-1),IF(AND(F58<D58,D58<0),-((F58/D58)-1),(F58/D58)-1))),0) -> -1.8 | J58: =IFERROR(IF(E58=F58,0,IF(F58>E58,ABS((F58/E58)-1),IF(AND(F58<E58,E58<0),-((F58/E58)-1),(F58/E58)-1))),0) -> 0.2888888889
B59: Marjă brută | D59: =D18/SUM(VenitVânzări[Perioada anterioară]) -> 1 | E59: =E18/SUM(VenitVânzări[Buget]) -> 0.86 | F59: =F18/SUM(VenitVânzări[Perioada curentă]) -> 0.8444444444
B60: Profit din vânzări | D60: =D58/SUM(VenitVânzări[Perioada anterioară]) -> 1 | E60: =E58/SUM(VenitVânzări[Buget]) -> -0.9 | F60: =F58/SUM(VenitVânzări[Perioada curentă]) -> -0.7111111111
